bitfinex-derivatives/quotes_ETHF0:USTF0_20210702
["timestamp","ask_amount","ask_price","bid_price","bid_amount"]
[1625269251761,1.0,2142.9,2142.7,2.20527]
[1625269251858,2.20527,2143.0,2142.7,2.20527]
[1625269252412,50.03877,2143.0,2142.7,2.20527]
[1625269252760,1.0,2142.9,2142.7,2.20527]
[1625269253612,3.20527,2142.9,2142.7,2.20527]
[1625269254864,2.20527,2142.9,2142.7,2.20527]
[1625269255615,2.20527,2142.9,2142.8,2.20527]
[1625269255714,2.20527,2142.9,2142.8,4.52697]
[1625269256064,3.20527,2142.9,2142.8,4.52697]
[1625269256717,2.20527,2142.9,2142.8,4.52697]
[1625269257619,2.20527,2142.9,2142.8,6.73224]
[1625269258572,3.20527,2142.9,2142.8,6.73224]
[1625269259122,48.19097,2142.9,2142.8,4.52697]
[1625269260328,3.20527,2142.9,2142.8,4.52697]
[1625269263282,3.20527,2142.9,2142.4,2.20527]
[1625269263634,2.20527,2142.5,2142.4,2.20527]
[1625269264887,3.20527,2142.5,2142.4,2.20527]
[1625269265338,55.78597,2142.5,2142.4,2.20527]
[1625269266437,55.78597,2142.5,2142.0,2.20527]
[1625269266541,3.20527,2142.5,2142.0,2.20527]
[1625269267641,3.20527,2142.5,2142.4,2.20527]
[1625269270403,3.20527,2142.5,2142.0,2.20527]
[1625269271710,2.20527,2142.1,2142.0,2.20527]
[1625269271809,3.20527,2142.1,2142.0,2.20527]
[1625269273060,2.20527,2142.1,2142.0,2.20527]
[1625269280024,41.46667,2142.1,2142.0,2.20527]
[1625269281142,2.20527,2142.1,2142.0,2.20527]
[1625269285363,2.20527,2142.5,2142.0,2.20527]
[1625269285464,1.34356531,2142.8,2142.0,2.20527]
[1625269285668,1.34441146,2142.9,2142.0,7.20527]
[1625269285818,1.34441146,2142.9,2142.8,4.41054]
[1625269285920,1.34441146,2142.9,2142.8,62.16544]
[1625269286168,2.20527,2143.0,2142.8,62.16544]
[1625269289076,2.20527,2143.0,2142.8,7.44484]
[1625269294245,2.20527,2143.0,2142.8,54.82744]
[1625269294444,2.20527,2143.0,2142.8,7.44484]
[1625269306380,1.34425654,2143.6,2142.8,7.44484]
[1625269306631,1.34425654,2143.6,2142.9,5.0]
[1625269306983,4.759,2144.0,2142.9,6.37685807]
[1625269307081,4.759,2144.0,2143.6,46.8036]
[1625269307183,4.759,2144.0,2143.6,49.676]
[1625269307282,1.34576254,2144.1,2143.6,49.676]
[1625269307385,1.34632371,2144.3,2143.6,49.676]
[1625269307483,1.34632371,2144.3,2143.6,2.8724]
[1625269307784,1.34557232,2144.2,2143.6,2.8724]
[1625269307988,2.72828471,2144.2,2144.1,4.41054]
[1625269308085,2.72828471,2144.2,2144.1,7.75234]
[1625269308186,44.91818471,2144.2,2144.1,7.75234]
[1625269308289,43.53547232,2144.2,2144.1,7.75234]
[1625269308738,42.1899,2144.2,2144.1,7.75234]
[1625269309190,43.53563986,2144.2,2144.1,7.75234]
[1625269309289,1.34573986,2144.2,2144.1,7.75234]
[1625269310141,1.34553533,2144.3,2144.1,7.75234]
[1625269310442,1.88421024,2144.4,2144.1,7.75234]
[1625269310443,1.34585636,2144.4,2144.1,7.75234]
[1625269310891,1.34689267,2144.3,2144.1,7.75234]
[1625269313696,1.34585026,2144.2,2144.1,7.75234]
[1625269313894,2.72861765,2144.2,2144.1,7.75234]
[1625269314248,1.34585026,2144.2,2144.1,7.75234]
[1625269315001,2.72864412,2144.2,2144.1,7.75234]
[1625269315459,1.38279386,2144.2,2144.1,7.75234]
[1625269315709,2.72832903,2144.2,2144.1,7.75234]
[1625269315808,1.34553517,2144.2,2144.1,7.75234]
[1625269316212,3.54972845,2144.3,2144.1,7.75234]
[1625269321883,1.34445845,2144.3,2144.1,7.75234]
[1625269322182,1.34371903,2144.4,2144.1,7.75234]
[1625269322384,45.0991,2144.2,2144.1,7.75234]
[1625269322481,45.0991,2144.2,2144.1,2.16584]
[1625269322585,45.0991,2144.2,2143.3,1.0]
[1625269322687,45.0991,2144.2,2143.2,15.702]
[1625269322786,45.0991,2144.2,2142.9,1.0]
[1625269322883,1.38284682,2144.1,2142.9,1.0]
[1625269322983,45.1328,2143.0,2142.3,3.57474963]
[1625269323084,45.1328,2143.0,2142.4,1.37488272]
[1625269323437,45.1328,2143.0,2142.2,15.1394]
[1625269323988,2.20527,2143.1,2142.9,2.20527]
[1625269324290,75.3612,2143.5,2142.9,2.20527]
[1625269325441,44.84,2143.0,2142.9,2.20527]
[1625269325992,47.04527,2143.0,2142.9,4.41054]
[1625269326302,2.20527,2143.0,2142.9,4.41054]
[1625269328372,2.20527,2143.5,2142.9,4.41054]
[1625269328472,2.20527,2143.5,2142.9,7.89344]
[1625269328771,2.20527,2143.5,2142.9,8.81704]
[1625269328870,2.20527,2143.5,2142.9,7.89344]
[1625269329220,2.20527,2143.5,2143.1,54.5384]
[1625269329420,2.20527,2143.5,2142.9,7.89344]
[1625269330034,2.20527,2143.5,2143.4,4.41054]
[1625269330184,2.20527,2143.5,2143.4,7.75174]
[1625269332038,2.20527,2143.5,2143.4,3.3412]
[1625269332290,43.75257,2143.5,2143.4,3.3412]
[1625269332998,2.20527,2143.5,2143.4,3.3412]
[1625269334046,2.20527,2143.5,2143.4,5.54647]
[1625269334146,2.20527,2143.5,2143.4,3.3412]
[1625269334296,45.94567,2143.5,2143.4,3.3412]
[1625269334598,2.20527,2143.5,2143.4,3.3412]
[1625269335250,45.94567,2143.5,2143.4,3.3412]
[1625269335348,45.94567,2143.5,2143.2,2.20527]
[1625269336402,2.20527,2143.5,2143.2,2.20527]
[1625269337050,43.08457,2143.5,2143.2,2.20527]
[1625269337753,46.19247,2143.5,2143.2,2.20527]
[1625269338054,46.19247,2143.5,2142.6,2.20527]
[1625269338152,2.20527,2143.3,2142.6,2.20527]
[1625269338953,56.8857,2142.9,2142.6,2.20527]
[1625269339455,2.20527,2143.3,2142.6,2.20527]
[1625269340107,2.20527,2142.9,2142.6,2.20527]
[1625269340559,53.4018,2142.8,2142.6,2.20527]
[1625269340657,2.20527,2142.9,2142.6,2.20527]
[1625269340757,2.20527,2142.9,2142.6,4.79157]
[1625269342022,2.20527,2143.3,2142.6,4.79157]
[1625269342122,4.41054,2143.3,2142.9,2.20527]
[1625269343627,4.41054,2143.3,2142.6,2.5863]
[1625269343728,4.41054,2143.3,2142.3,1.0]
[1625269343829,44.8212,2142.4,2142.3,1.0]
[1625269343928,44.8212,2142.4,2142.2,15.1394]
[1625269344129,44.8212,2142.4,2142.3,2.20527]
[1625269345330,2.20527,2142.5,2142.3,2.20527]
[1625269349302,4.47387263,2143.7,2142.3,2.20527]
[1625269349303,1.336466,2143.4,2142.3,2.20527]
[1625269349450,1.336466,2143.4,2142.3,3.20527]
[1625269350154,2.20527,2143.2,2142.6,2.20527]
[1625269350255,2.20527,2143.2,2142.6,5.07397]
[1625269351259,40.8184,2142.8,2142.6,5.07397]
[1625269351708,2.20527,2143.2,2142.6,5.07397]
[1625269352158,2.20527,2143.2,2143.1,4.41054]
[1625269352258,2.20527,2143.2,2143.1,6.85644]
[1625269352457,2.20527,2143.4,2143.1,6.85644]
[1625269353876,49.8955,2143.2,2143.1,6.85644]
[1625269354125,49.8955,2143.2,2143.1,2.4459]
[1625269355678,49.8955,2143.2,2142.8,2.20527]
[1625269356189,2.20527,2142.9,2142.8,2.20527]
[1625269358556,59.19297,2142.9,2142.8,2.20527]
[1625269359103,2.20527,2142.9,2142.8,2.20527]
[1625269359707,49.8955,2143.2,2142.8,2.20527]
[1625269360157,49.8955,2143.2,2143.1,2.20527]
[1625269360255,49.8955,2143.2,2143.1,4.79447]
[1625269360455,2.20527,2143.4,2143.1,4.79447]
[1625269362861,2.20527,2143.5,2143.1,4.79447]
[1625269363061,2.20527,2143.5,2143.3,44.1425]
[1625269363723,2.67629353,2144.3,2143.3,44.1425]
[1625269363724,1.33866023,2144.3,2143.3,44.1425]
[1625269364217,1.33866023,2144.3,2143.9,2.20527]
[1625269364317,1.33866023,2144.3,2143.9,4.93397]
[1625269364979,51.0152,2144.2,2143.9,4.93397]
[1625269365077,1.33866023,2144.3,2143.9,4.93397]
[1625269366881,1.3396202,2144.2,2143.9,4.93397]
[1625269367336,1.33949815,2144.3,2143.9,4.93397]
[1625269368184,48.9312,2144.2,2143.9,4.93397]
[1625269368283,1.33949815,2144.3,2143.9,4.93397]
[1625269368985,1.38272493,2144.2,2143.9,4.93397]
[1625269369135,50.5853,2144.0,2143.9,4.93397]
[1625269369796,1.34007062,2144.1,2143.9,4.93397]
[1625269370296,2.20527,2144.0,2143.9,4.93397]
[1625269370848,3.54565238,2144.0,2143.9,4.93397]
[1625269371705,59.85085238,2144.0,2143.9,4.93397]
[1625269372005,61.23369349,2144.0,2143.9,4.93397]
[1625269372508,4.92849349,2144.0,2143.9,4.93397]
[1625269374212,53.03219349,2144.0,2143.9,4.93397]
[1625269374363,53.5690474,2144.0,2143.9,4.93397]
[1625269376217,5.4653474,2144.0,2143.9,4.93397]
[1625269377922,60.4417474,2144.0,2143.9,4.93397]
[1625269378021,5.4653474,2144.0,2143.9,4.93397]
[1625269378178,6.270548,2144.0,2143.9,4.93397]
[1625269378620,5.46588668,2144.0,2143.9,4.93397]
[1625269380525,3.54885103,2144.0,2143.9,4.93397]
[1625269380773,2.20527,2144.0,2143.9,4.93397]
[1625269385294,50.16557,2144.0,2143.9,4.93397]
[1625269385396,2.20527,2144.0,2143.9,4.93397]
[1625269385944,2.20527,2144.0,2143.9,2.20527]
[1625269386045,3.5880922,2144.0,2143.9,2.20527]
[1625269386149,54.5927922,2144.0,2143.9,2.20527]
[1625269386254,55.93627726,2144.0,2143.9,2.20527]
[1625269386500,54.55345506,2144.0,2143.9,2.20527]
[1625269386650,3.54875506,2144.0,2143.9,2.20527]
[1625269387351,3.54875506,2144.0,2143.9,5.46287]
[1625269387702,2.20527,2144.0,2143.9,5.46287]
[1625269387901,1.34381837,2144.1,2143.9,5.46287]
[1625269390309,3.54908837,2144.1,2143.9,5.46287]
[1625269390759,2.20527,2144.1,2143.9,5.46287]
[1625269394263,53.48147,2144.1,2143.9,5.46287]
[1625269394365,2.20527,2144.1,2143.9,5.46287]
[1625269395770,3.55107074,2144.1,2143.9,5.46287]
[1625269396372,2.20527,2144.0,2143.9,5.46287]
[1625269397672,45.41597,2144.0,2143.9,5.46287]
[1625269397772,2.20527,2144.0,2143.9,5.46287]
[1625269400145,51.12187,2144.0,2143.9,5.46287]
[1625269400344,51.12187,2144.0,2142.9,2.20527]
[1625269400644,1.38293644,2143.9,2142.9,2.20527]
[1625269400945,1.3462801,2143.8,2142.9,2.20527]
[1625269401297,1.34634304,2143.7,2142.9,2.20527]
[1625269401397,3.73144304,2143.7,2142.9,2.20527]
[1625269401503,53.5806,2143.2,2142.9,2.20527]
[1625269402002,3.73144304,2143.7,2142.9,2.20527]
[1625269402453,2.20527,2143.0,2142.9,2.20527]
[1625269403858,44.59497,2143.0,2142.9,2.20527]
[1625269404260,2.20527,2143.0,2142.9,2.20527]
[1625269405213,47.55267,2143.0,2142.9,2.20527]
[1625269405314,2.20527,2143.0,2142.9,2.20527]
[1625269410429,2.20527,2143.0,2142.9,5.75747]
[1625269411026,1.34389774,2143.4,2142.9,5.75747]
[1625269411827,1.88170334,2143.6,2142.9,5.75747]
[1625269411828,1.34467683,2143.6,2142.9,5.75747]
[1625269412479,2.20527,2143.1,2142.9,5.75747]
[1625269412781,1.34467683,2143.6,2142.9,5.75747]
[1625269413331,1.34467683,2143.6,2143.4,41.0039]
[1625269413429,1.34467683,2143.6,2143.4,44.5593]
[1625269413530,1.34471445,2143.7,2143.4,44.5593]
[1625269413880,1.34471445,2143.7,2143.4,3.5554]
[1625269414032,1.34438683,2143.8,2143.4,3.5554]
[1625269414332,1.34571397,2144.0,2143.4,3.5554]
[1625269414583,2.20527,2143.7,2143.6,2.20527]
[1625269419073,2.20527,2143.9,2143.6,2.20527]
[1625269419423,2.20527,2143.9,2143.8,43.3209]
[1625269419925,1.34597254,2144.2,2143.8,43.3209]
[1625269420375,3.49978426,2144.7,2143.8,43.3209]
[1625269420474,4.30742678,2144.9,2143.9,8.0036]
[1625269420475,2.83251104,2144.9,2143.9,8.0036]
[1625269420575,2.83251104,2144.9,2144.6,8.05714]
[1625269420777,1.38202678,2144.8,2144.6,8.05714]
[1625269420877,4.88297323,2144.8,2144.6,8.05714]
[1625269420975,4.88297323,2144.8,2144.7,51.0347]
[1625269421075,3.50094645,2144.8,2144.7,51.0347]
[1625269421580,6.77102817,2146.3,2144.7,51.0347]
[1625269421827,1.38186009,2145.5,2144.7,51.0347]
[1625269422528,1.38186009,2145.5,2145.4,4.41054]
[1625269422632,2.20527,2145.8,2145.4,50.98884]
[1625269423030,2.20527,2145.8,2145.4,7.52664]
[1625269423929,2.20527,2145.8,2145.4,4.41054]
[1625269424530,2.20527,2145.5,2145.4,4.41054]
[1625269425585,2.20527,2145.8,2145.4,4.41054]
[1625269425687,2.20527,2145.8,2145.4,7.65914]
[1625269426586,2.20527,2145.5,2145.4,7.65914]
[1625269426994,2.20527,2145.5,2144.8,1.0]
[1625269427097,2.20527,2145.5,2143.1,1.1]
[1625269427195,2.20527,2145.5,2143.6,1.0]
[1625269427496,50.5609,2144.8,2143.6,1.0]
[1625269427645,53.4796,2144.8,2143.6,1.0]
[1625269428600,2.20527,2144.5,2144.4,2.20527]
[1625269428705,2.20527,2144.5,2143.7,1.0]
[1625269428801,2.20527,2144.5,2143.5,15.3696]
[1625269429004,51.1084,2144.0,2143.5,15.3696]
[1625269429252,51.1084,2144.0,2142.6,51.8262]
[1625269429402,3.5154,2144.3,2142.6,51.8262]
[1625269429603,3.5154,2144.3,2142.6,56.8262]
[1625269429706,3.5154,2144.3,2142.7,1.0]
[1625269430205,59.3491,2143.5,2142.7,1.0]
[1625269430307,59.3491,2143.5,2142.0,40.7085]
[1625269430507,3.1029,2143.5,2142.0,40.7085]
[1625269430607,5.30817,2143.5,2143.4,2.20527]
[1625269431208,50.1964,2143.5,2143.4,2.20527]
[1625269431459,3.1029,2143.5,2143.4,2.20527]
[1625269431907,2.20527,2143.7,2143.4,2.20527]
[1625269432007,19.231,2145.3,2143.4,42.97847]
[1625269432111,19.231,2145.3,2143.5,1.0]
[1625269432209,14.231,2145.3,2143.5,1.0]
[1625269432319,1.3824614,2145.2,2143.5,1.0]
[1625269432560,2.20527,2144.3,2144.2,2.20527]
[1625269432660,2.20527,2144.3,2144.2,5.36707]
[1625269434622,4.41054,2144.3,2144.2,5.36707]
[1625269434772,4.41054,2144.3,2142.9,29.0926]
[1625269435276,43.4172,2143.8,2142.9,29.0926]
[1625269435378,43.4172,2143.8,2142.9,14.4547]
[1625269435680,4.41054,2144.3,2142.9,14.4547]
[1625269435880,4.41054,2144.3,2143.0,1.0]
[1625269436278,4.41054,2144.3,2143.1,55.118]
[1625269436378,4.41054,2144.3,2143.2,1.0]
[1625269436580,2.20527,2144.3,2144.0,2.20527]
[1625269438631,4.41054,2144.3,2144.0,2.20527]
[1625269438732,4.41054,2144.3,2144.0,5.80167]
[1625269439784,5.759,2145.6,2144.0,5.80167]
[1625269439884,4.759,2145.6,2144.0,6.80167]
[1625269440485,1.38219899,2145.5,2144.0,6.80167]
[1625269440685,2.20527,2144.7,2144.5,5.98727]
[1625269442637,2.20527,2144.7,2144.5,8.19254]
[1625269448112,2.20527,2144.7,2144.5,5.98727]
[1625269448212,2.20527,2144.7,2144.1,1.0]
[1625269448313,2.20527,2144.7,2142.3,9.23999649]
[1625269448413,2.20527,2144.7,2143.4,1.0]
[1625269448666,2.20527,2144.2,2143.9,2.20527]
[1625269450669,2.20527,2144.1,2143.9,2.20527]
[1625269451420,2.20527,2144.1,2144.0,45.2274]
[1625269451522,2.20527,2144.1,2144.0,48.6452]
[1625269451824,2.20527,2144.1,2144.0,3.4178]
[1625269452977,2.20527,2144.1,2143.9,55.53567]
[1625269453429,2.20527,2144.1,2143.9,2.20527]
[1625269462679,2.20527,2144.1,2144.0,40.7185]
[1625269462780,2.20527,2144.1,2144.0,43.8004]
[1625269463478,1.0,2145.3,2144.0,43.8004]
[1625269463578,0.9371,2145.4,2144.1,1.0]
[1625269463728,4.29617341,2145.9,2144.1,1.0]
[1625269463827,4.759,2145.6,2144.1,1.0]
[1625269464235,1.38210756,2145.5,2144.1,1.0]
[1625269464579,44.6122,2145.2,2144.1,1.0]
[1625269464782,2.20527,2144.6,2144.4,2.20527]
[1625269469690,5.06447,2144.6,2144.4,2.20527]
[1625269469990,58.1224,2144.5,2144.4,2.20527]
[1625269470245,58.1224,2144.5,2143.4,1.0]
[1625269470892,58.1224,2144.5,2144.0,2.20527]
[1625269472494,5.06447,2144.6,2144.0,2.20527]
[1625269472995,2.20527,2144.1,2144.0,2.20527]
[1625269477515,2.20527,2144.1,2144.0,45.01197]
[1625269478167,2.20527,2144.1,2144.0,2.20527]
[1625269480225,2.20527,2144.1,2144.0,60.45457]
[1625269481179,2.20527,2144.1,2144.0,2.20527]
[1625269483084,2.20527,2144.1,2144.0,4.97947]
[1625269485839,2.20527,2144.1,2144.0,53.13027]
[1625269485939,2.20527,2144.1,2144.0,4.97947]
[1625269492721,2.20527,2144.1,2144.0,52.17047]
[1625269492819,2.20527,2144.1,2144.0,4.97947]
[1625269494374,2.20527,2144.1,2144.0,45.97437]
[1625269496129,2.20527,2144.1,2144.0,4.97947]
[1625269498381,2.20527,2144.1,2144.0,50.02887]
[1625269500689,2.20527,2144.1,2144.0,4.97947]
[1625269501039,2.20527,2144.6,2144.0,4.97947]
[1625269501248,2.20527,2144.9,2144.5,4.41054]
[1625269501402,2.20527,2144.9,2144.5,7.51084]
[1625269501598,3.49364335,2145.6,2144.5,7.51084]
[1625269501697,3.49364335,2145.6,2144.5,8.51084]
[1625269501800,3.49486256,2145.8,2145.3,48.6088]
[1625269501900,3.49486256,2145.8,2145.3,51.272]
[1625269502147,5.22386931,2146.0,2145.3,51.272]
[1625269502148,3.49647218,2145.9,2145.3,51.272]
[1625269502298,1.38172633,2145.7,2145.3,51.272]
[1625269502597,1.3816614,2145.8,2145.3,51.272]
[1625269503102,9.47493391,2146.0,2145.3,51.272]
[1625269503251,2.20527,2145.6,2145.4,2.20527]
[1625269505250,4.41054,2145.6,2145.4,50.41057]
[1625269505350,4.41054,2145.6,2145.4,2.20527]
[1625269509172,53.2276,2145.5,2145.4,2.20527]
[1625269509279,4.41054,2145.6,2145.4,2.20527]
[1625269509922,57.63814,2145.6,2145.4,2.20527]
[1625269510122,1.38165372,2145.5,2145.2,2.20527]
[1625269510676,4.41054,2145.6,2145.2,2.20527]
[1625269511324,2.20527,2145.3,2145.2,2.20527]
[1625269513429,51.78727,2145.3,2145.2,2.20527]
[1625269514190,2.20527,2145.3,2145.2,2.20527]
[1625269518447,2.20527,2145.3,2145.2,4.92667]
[1625269519300,53.04417,2145.3,2145.2,4.92667]
[1625269519799,53.04417,2145.3,2145.2,2.20527]
[1625269520250,2.20527,2145.3,2145.2,2.20527]
[1625269521104,3.58712633,2145.3,2145.2,2.20527]
[1625269522214,3.58712633,2145.3,2144.3,1.0]
[1625269522706,1.38192456,2145.2,2144.3,1.0]
[1625269522856,1.38192456,2145.2,2144.2,52.5161]
[1625269523007,1.38192456,2145.2,2144.2,53.5161]
[1625269523522,2.20527,2144.4,2144.3,2.20527]
[1625269523664,2.20527,2144.4,2144.3,4.52537]
[1625269525431,4.41054,2144.4,2144.3,4.52537]
[1625269528287,4.41054,2144.4,2144.3,50.50147]
[1625269529037,2.20527,2144.4,2144.3,50.50147]
[1625269529137,0.9394,2145.4,2144.3,50.50147]
[1625269529239,0.9394,2145.4,2144.3,5.52537]
[1625269529389,2.20527,2144.7,2144.6,2.20527]
[1625269530694,8.25966154,2145.7,2144.6,2.20527]
[1625269530792,8.25966154,2145.7,2144.6,3.20527]
[1625269531443,3.50066154,2145.7,2145.6,4.41054]
[1625269531546,5.71256061,2146.2,2145.6,6.86294]
[1625269532045,1.38141857,2146.1,2145.6,6.86294]
[1625269532144,1.38141857,2146.1,2145.7,43.4475]
[1625269532244,1.38141857,2146.1,2145.6,6.86294]
[1625269533468,1.38141857,2146.1,2146.0,2.20527]
[1625269535560,3.58668857,2146.1,2146.0,2.20527]
[1625269539432,2.20527,2146.1,2146.0,2.20527]
[1625269539733,2.20527,2146.1,2146.0,52.37247]
[1625269539935,2.20527,2146.1,2146.0,2.20527]
[1625269541744,2.20527,2146.2,2146.0,2.20527]
[1625269543547,2.20527,2146.2,2146.1,2.20527]
[1625269543649,2.20527,2146.2,2146.1,5.29697]
[1625269554945,2.69062245,2146.9,2146.1,5.29697]
[1625269555196,2.69250304,2147.0,2146.4,44.625]
[1625269555596,4.89777304,2147.0,2146.9,2.20527]
[1625269555746,4.89777304,2147.0,2146.9,5.83087]
[1625269555946,6.27878692,2147.0,2146.9,5.83087]
[1625269557603,8.48405692,2147.0,2146.9,5.83087]
[1625269557805,7.10304304,2147.0,2146.9,5.83087]
[1625269558056,4.41054,2147.0,2146.9,5.83087]
[1625269560761,4.41054,2147.0,2146.9,3.6256]
[1625269560861,4.41054,2147.0,2146.6,2.20527]
[1625269560960,9.41054,2147.0,2146.6,2.20527]
[1625269561165,9.41054,2147.0,2146.1,3.0917]
[1625269561166,1.38117265,2146.9,2146.1,3.0917]
[1625269561261,1.38117265,2146.9,2145.0,14.5961]
[1625269561665,2.20527,2146.1,2145.9,2.20527]
[1625269561762,2.20527,2146.1,2145.9,4.64287]
[1625269563668,2.20527,2146.1,2146.0,2.20527]
[1625269565772,2.20527,2146.1,2146.0,46.03997]
[1625269569590,2.20527,2146.3,2146.0,46.03997]
[1625269569691,2.20527,2146.3,2146.2,2.20527]
[1625269571842,2.69468546,2147.2,2146.2,2.20527]
[1625269571943,2.69468546,2147.2,2146.2,3.20527]
[1625269572195,2.69476499,2147.3,2146.2,3.20527]
[1625269572545,1.38093443,2147.2,2146.2,3.20527]
[1625269572894,1.38093443,2147.2,2146.3,41.5809]
[1625269573705,2.20527,2146.8,2146.7,2.20527]
[1625269573807,2.20527,2146.8,2146.7,5.32857]
[1625269575761,2.20527,2146.8,2146.7,7.53384]
[1625269578616,2.69247531,2147.4,2146.7,7.53384]
[1625269578917,7.45350898,2147.7,2146.7,7.53384]
[1625269579016,7.45350898,2147.7,2146.7,8.53384]
[1625269579317,2.69450898,2147.7,2146.7,8.53384]
[1625269579420,2.69562026,2147.8,2146.7,8.53384]
[1625269579719,2.69562026,2147.8,2147.7,2.20527]
[1625269579818,2.69562026,2147.8,2147.7,4.57947]
[1625269580021,2.20527,2148.0,2147.7,4.57947]
[1625269580570,2.20527,2148.0,2147.8,43.9167]
[1625269583851,2.20527,2148.0,2147.9,2.20527]
[1625269584302,2.6964375,2148.6,2147.9,2.20527]
[1625269584656,2.69839874,2148.9,2148.7,56.228]
[1625269584852,2.69839874,2148.9,2148.7,58.5438]
[1625269585354,2.69943727,2149.1,2148.7,58.5438]
[1625269585756,2.69733549,2149.2,2149.0,4.41054]
[1625269586155,3.50653614,2149.5,2149.0,4.41054]
[1625269586156,2.69804166,2149.4,2149.0,4.41054]
[1625269586805,2.70006604,2149.7,2149.5,49.1593]
[1625269586904,2.70006604,2149.7,2149.5,52.9355]
[1625269587309,2.70126619,2149.8,2149.5,52.9355]
[1625269587607,5.71691605,2150.1,2149.5,52.9355]
[1625269587608,2.69802228,2150.0,2149.5,52.9355]
[1625269587809,2.69802228,2150.0,2149.9,4.41054]
[1625269588208,2.69802228,2150.0,2149.9,3.30694963]
[1625269588458,2.69802228,2150.0,2149.9,2.20527]
[1625269588561,2.69802228,2150.0,2149.9,0.54796502]
[1625269588761,2.69802228,2150.0,2149.5,52.9355]
[1625269589220,2.20527,2150.1,2149.5,52.9355]
[1625269589571,2.20527,2150.1,2149.5,3.7762]
[1625269589875,2.20527,2150.1,2150.0,4.41054]
[1625269589973,2.20527,2150.1,2150.0,6.84534]
[1625269590222,2.20527,2150.1,2150.0,4.64007]
[1625269590323,2.20527,2150.1,2150.0,2.4348]
[1625269590773,2.20527,2150.1,2150.0,59.2047]
[1625269590975,2.20527,2150.1,2150.0,2.4348]
[1625269591828,2.20527,2150.1,2150.0,4.64007]
[1625269594191,2.20527,2150.1,2150.0,2.4348]
[1625269594293,2.20527,2150.1,2149.1,1.0]
[1625269594492,5.66787,2150.1,2147.6,16.1032]
[1625269594745,5.66787,2150.1,2147.6,15.0032]
[1625269595043,5.66787,2150.1,2148.0,5.0]
[1625269595242,5.66787,2150.1,2148.1,1.0]
[1625269595593,5.66787,2150.1,2148.2,3.6147]
[1625269595843,2.20527,2149.5,2149.1,2.20527]
[1625269596047,5.61437,2149.5,2147.6,15.0032]
[1625269596247,5.61437,2149.5,2148.0,1.0]
[1625269596555,50.08567,2149.5,2148.0,1.0]
[1625269596654,5.61437,2149.5,2148.0,1.0]
[1625269597855,2.20527,2149.1,2148.6,2.20527]
[1625269599517,7e-05,2149.1,2148.6,2.20527]
[1625269599817,2.20527,2149.5,2148.6,2.20527]
[1625269599916,6.96427,2150.0,2149.4,4.41054]
[1625269600017,6.96427,2150.0,2149.4,8.15014]
[1625269600269,2.20527,2150.0,2149.4,8.15014]
[1625269600367,2.20527,2150.0,2149.6,44.5408]
[1625269601870,2.20527,2150.0,2149.9,4.41054]
[1625269601971,2.20527,2150.0,2149.9,7.02844]
[1625269603123,2.20527,2150.2,2149.9,7.02844]
[1625269611767,2.20527,2150.2,2149.9,4.41054]
[1625269611918,2.20527,2150.2,2148.7,15.2563]
[1625269612018,2.20527,2149.5,2149.3,2.20527]
[1625269612120,4.83487,2149.5,2149.3,2.20527]
[1625269612269,60.36977,2149.5,2149.3,2.20527]
[1625269612368,60.36977,2149.5,2149.1,2.20527]
[1625269612469,4.83487,2149.5,2149.1,2.20527]
[1625269615978,2.20527,2149.2,2149.1,2.20527]
[1625269619580,2.20527,2149.2,2148.0,1.0]
[1625269619730,2.20527,2149.2,2148.6,54.974]
[1625269619933,2.20527,2149.2,2148.0,1.0]
[1625269620031,2.20527,2149.2,2148.6,2.20527]
[1625269620032,2.20527,2148.8,2148.6,2.20527]
[1625269620431,2.20527,2149.2,2148.6,2.20527]
[1625269623291,2.20527,2149.2,2148.6,4.65697]
[1625269624037,2.20527,2149.2,2149.1,4.41054]
[1625269624140,2.20527,2149.2,2149.1,7.18684]
[1625269626444,1.0,2150.4,2149.1,7.18684]
[1625269626543,5.0,2151.1,2149.2,1.0]
[1625269626906,4.759,2151.2,2149.2,1.0]
[1625269627006,4.759,2151.2,2150.1,45.5615]
[1625269628111,2.20527,2150.4,2150.1,45.5615]
[1625269628713,2.20527,2150.4,2149.2,1.0]
[1625269629113,4.759,2151.8,2149.2,1.0]
[1625269629514,4.759,2151.8,2150.3,44.3761]
[1625269629614,4.759,2151.8,2149.2,1.0]
[1625269629814,2.5301,2151.7,2149.2,1.0]
[1625269630563,2.5301,2151.7,2150.0,44.3823]
[1625269631919,2.5301,2151.7,2149.3,14.4108]
[1625269632370,4.759,2151.2,2149.5,53.5448]
[1625269632472,8.4616,2151.2,2149.5,53.5448]
[1625269634775,13.2206,2151.2,2149.5,53.5448]
[1625269635876,13.2206,2151.2,2150.4,42.2246]
[1625269636434,8.4616,2151.2,2150.4,42.2246]
[1625269637781,4.759,2151.2,2150.4,42.2246]
[1625269640842,2.20527,2151.1,2150.4,42.2246]
[1625269641401,4.759,2151.2,2150.4,42.2246]
[1625269642802,2.20527,2151.1,2151.0,2.20527]
[1625269645862,5.13937,2151.1,2151.0,2.20527]
[1625269646162,5.13937,2151.1,2149.9,1.0]
[1625269646263,5.13937,2151.1,2149.1,5.0]
[1625269646363,5.13937,2151.1,2149.2,1.0]
[1625269646814,2.20527,2150.8,2150.5,2.20527]
[1625269648520,5.34417,2150.8,2149.6,1.0]
[1625269648619,5.34417,2150.8,2149.2,1.0]
[1625269648768,5.34417,2150.8,2148.6,5.0]
[1625269648869,4.70287,2150.1,2150.0,2.20527]